fUST/lending_fUST_20250826
["ID","MTS","AMOUNT","RATE_DAILY","PERIOD"]
[381454561,1756217441201,-151.0,0.00031531,2]
[381454562,1756217441213,-151.0,0.00031531,2]
[381454563,1756217441226,-10722.99999999,0.00031672,2]
[381454564,1756217441240,-334.74076775,0.00031672,2]
[381454565,1756217441308,-54053.1500708,0.00031672,2]
[381454569,1756217443882,-500.0,0.00030983,2]
[381454570,1756217443896,-203.86155924,0.00030983,2]
[381454571,1756217443907,-604.0,0.00031257,2]
[381454572,1756217443920,-50256.01117476,0.00031672,2]
[381454573,1756217443943,-6708.26884813,0.00031672,2]
[381454605,1756217446941,-151.0,0.00030983,2]
[381454606,1756217446951,-151.0,0.00030983,2]
[381454607,1756217446961,-33.09476907,0.00031672,2]
[381454608,1756217499923,210.30572092,0.000199,2]
[381454609,1756217500036,210.30572063,0.00021627,2]
[381454610,1756217500186,210.30572063,0.00023353,2]
[381454611,1756217500318,210.30572063,0.0002508,2]
[381454612,1756217500435,210.30572063,0.00026806,6]
[381454613,1756217545315,151.80273,0.00028151,20]
[381454614,1756217566395,417.15472785,0.00028,10]
[381454616,1756217693925,202.21703925,0.000199,2]
[381454617,1756217694062,202.21703906,0.00021903,2]
[381454618,1756217694491,202.21703906,0.00023906,2]
[381454619,1756217694557,202.21703906,0.00025908,4]
[381454620,1756217694613,202.21703906,0.00027911,8]
[381454621,1756217849184,1745.37227945,0.00026574,10]
[381454622,1756217871707,417.15472785,0.00027,3]
[381454623,1756217884278,202.21703906,0.000199,2]
[381454624,1756217884421,202.21703906,0.00022404,2]
[381454625,1756217884555,202.21703906,0.00024907,2]
[381454626,1756217884751,202.21703906,0.00027411,7]
[381454627,1756218076116,202.21703906,0.000199,2]
[381454628,1756218076450,202.21703906,0.00023029,2]
[381454629,1756218076500,202.21703906,0.00026159,4]
[381454630,1756218144028,151.80273,0.00028151,20]
[381454632,1756218265151,202.21703906,0.000199,2]
[381454633,1756218265314,202.21703906,0.00023752,2]
[381454634,1756218265461,202.21703906,0.00027603,8]
[381454635,1756218328875,-193.44808,0.00029613,120]
[381454636,1756218328926,-181.87502351,0.00031157,108]
[381454637,1756218328978,-281.47,0.00031868,60]
[381454638,1756218329026,-500.24,0.00031873,60]
[381454639,1756218329093,-385.0,0.00035979,120]
[381454640,1756218329157,-585.0,0.00036047,120]
[381454641,1756218329207,-341.0,0.00036813,120]
[381454642,1756218329257,-168.0,0.00037074,120]
[381454643,1756218329304,-3753.72953142,0.00037084,120]
[381454644,1756218329353,-1029.48355832,0.00038,120]
[381454645,1756218329430,-924.17,0.00038356,120]
[381454646,1756218329485,-380.72074823,0.00038356,120]
[381454647,1756218329535,-1019.03,0.000386,120]
[381454648,1756218329631,-924.17,0.00038904,120]
[381454649,1756218329683,-96890.46834848,0.0003899,120]
[381454650,1756218329976,-223743.13535392,0.000394,120]
[381454651,1756218330041,-924.17,0.00039452,120]
[381454652,1756218330095,-157.0,0.000395,120]
[381454653,1756218330168,-361.42610418,0.0004,120]
[381454654,1756218330212,-996.51056119,0.0004,120]
[381454655,1756218330255,-176562.75868028,0.0004,120]
[381454656,1756218330300,-3262.0,0.0004,120]
[381454657,1756218330357,-1000.0,0.0004,120]
[381454658,1756218330407,-924.17,0.0004,120]
[381454659,1756218330505,-924.17,0.00040547,120]
[381454660,1756218330558,-16317.352665,0.00040789,120]
[381454661,1756218330604,-150.0,0.000408,120]
[381454662,1756218330675,-188815.30345247,0.000409,60]
[381454663,1756218330721,-200000.0,0.000409,60]
[381454664,1756218330769,-177231.93369247,0.00040978,120]
[381454665,1756218330814,-1000.0,0.00041,120]
[381454666,1756218330864,-143001.26,0.00041,60]
[381454667,1756218330922,-935.63158338,0.00041,120]
[381454668,1756218330974,-1000.0,0.00041094,120]
[381454669,1756218331023,-800.0,0.00041095,60]
[381454670,1756218331085,-924.17,0.00041095,120]
[381454671,1756218331138,-654.34,0.00041095,120]
[381454672,1756218331187,-287.07655,0.000412,120]
[381454673,1756218331241,-151.0,0.00041367,120]
[381454674,1756218331288,-151.0,0.00041367,120]
[381454675,1756218331341,-300.0,0.00041367,120]
[381454676,1756218331394,-250.0,0.00041367,120]
[381454677,1756218331444,-194.72792766,0.00041367,120]
[381454678,1756218331494,-1000.0,0.00041368,120]
[381454679,1756218331542,-151.0,0.00041368,61]
[381454680,1756218331590,-151.0,0.00041368,61]
[381454681,1756218331642,-151.0,0.00041368,120]
[381454682,1756218331690,-300.0,0.00041368,61]
[381454683,1756218331740,-151.0,0.00041368,61]
[381454684,1756218331790,-151.0,0.00041368,120]
[381454685,1756218331839,-300.0,0.00041368,120]
[381454686,1756218331887,-151.59155591,0.00041368,120]
[381454687,1756218331936,-250.0,0.00041368,61]
[381454688,1756218331984,-19187.29552238,0.00041368,61]
[381454689,1756218332032,-250.0,0.00041368,120]
[381454690,1756218332080,-19897.22545671,0.00041368,120]
[381454691,1756218332128,-181.08010149,0.00041368,61]
[381454692,1756218332175,-300.0,0.00041368,61]
[381454693,1756218332226,-187.78006525,0.00041368,120]
[381454694,1756218332273,-300.0,0.00041368,120]
[381454695,1756218332320,-2264.10087164,0.00041368,61]
[381454696,1756218332391,-654.34,0.00041369,120]
[381454697,1756218332440,-181.87502351,0.00041542,120]
[381454698,1756218332488,-800.0,0.00041643,60]
[381454699,1756218332549,-924.17,0.00041643,120]
[381454700,1756218332601,-654.34,0.00041643,120]
[381454701,1756218332655,-2380.53022455,0.00041711,81]
[381454702,1756218332707,-151.80273,0.00041778,60]
[381454703,1756218332776,-654.34,0.00041917,120]
[381454704,1756218332824,-5000.0,0.00041931,83]
[381454705,1756218332871,-863.0,0.00042,120]
[381454706,1756218332918,-478.0,0.00042,120]
[381454707,1756218332965,-600.0,0.00042,120]
[381454708,1756218333017,-1500.0,0.00042,120]
[381454709,1756218333067,-1500.0,0.00042,120]
[381454710,1756218333119,-1500.0,0.00042,120]
[381454711,1756218333170,-200.0,0.0004214,120]
[381454712,1756218333221,-800.0,0.00042191,60]
[381454713,1756218333288,-924.17,0.00042191,120]
[381454714,1756218333347,-654.34,0.00042191,120]
[381454715,1756218333403,-151.80273,0.00042371,60]
[381454716,1756218333471,-654.34,0.00042465,120]
[381454717,1756218333526,-295.18492718,0.000425,120]
[381454718,1756218333592,-924.17,0.00042739,120]
[381454719,1756218333648,-654.34,0.00042739,120]
[381454720,1756218333700,-200.0,0.00042791,120]
[381454721,1756218333750,-1000.0,0.000428,120]
[381454722,1756218333819,-654.34,0.00043013,120]
[381454723,1756218333871,-800.0,0.00043287,60]
[381454724,1756218333934,-924.17,0.00043287,120]
[381454725,1756218333988,-654.34,0.00043287,120]
[381454726,1756218334045,-205.17113,0.000433,120]
[381454727,1756218334097,-200.0,0.000433,120]
[381454728,1756218334154,-150.0,0.000435,120]
[381454729,1756218334225,-654.34,0.00043561,120]
[381454730,1756218334282,-1645.22551253,0.00043666,91]
[381454731,1756218334337,-200.0,0.00043768,120]
[381454732,1756218334391,-650.39,0.00043835,120]
[381454733,1756218334442,-663.79,0.00043835,120]
[381454734,1756218334495,-1164.7,0.00043835,120]
[381454735,1756218334550,-211.61304094,0.00043835,120]
[381454736,1756218334603,-607.39,0.00043835,120]
[381454737,1756218334663,-500.23,0.00043835,120]
[381454738,1756218334895,-514.13,0.00043835,120]
[381454739,1756218334960,-531.31,0.00043835,120]
[381454740,1756218335008,-202.85962698,0.00043835,120]
[381454741,1756218335056,-734.84,0.00043835,120]
[381454742,1756218335111,-832.5,0.00043835,120]
[381454743,1756218335162,-538.04,0.00043835,120]
[381454744,1756218335215,-1077.24,0.00043835,120]
[381454745,1756218335272,-715.86,0.00043835,120]
[381454746,1756218335339,-480.0,0.00043835,120]
[381454747,1756218335401,-669.24,0.00043835,120]
[381454748,1756218335457,-853.3,0.00043835,120]
[381454749,1756218335507,-1991.1,0.00043835,120]
[381454750,1756218335555,-480.0,0.00043835,120]
[381454751,1756218335603,-596.6,0.00043835,120]
[381454752,1756218335653,-1218.62,0.00043835,120]
[381454753,1756218335701,-673.23,0.00043835,120]
[381454754,1756218335748,-745.6,0.00043835,120]
[381454755,1756218335797,-626.35,0.00043835,120]
[381454756,1756218335845,-482.61,0.00043835,120]
[381454757,1756218335894,-258.7963402,0.00043835,120]
[381454758,1756218335943,-587.43,0.00043835,120]
[381454759,1756218335990,-1894.39,0.00043835,120]
[381454760,1756218336039,-512.9,0.00043835,120]
[381454761,1756218336086,-480.0,0.00043835,120]
[381454762,1756218336135,-623.36,0.00043835,120]
[381454763,1756218336181,-733.12,0.00043835,120]
[381454764,1756218336229,-1706.1,0.00043835,120]
[381454765,1756218336278,-546.36,0.00043835,120]
[381454766,1756218336326,-1490.61,0.00043835,120]
[381454767,1756218336373,-637.47,0.00043835,120]
[381454768,1756218336425,-282.2910722,0.00043835,120]
[381454769,1756218336478,-926.78,0.00043835,120]
[381454770,1756218336527,-658.73,0.00043835,120]
[381454771,1756218336575,-671.86,0.00043835,120]
[381454772,1756218336627,-1326.02,0.00043835,120]
[381454773,1756218336677,-814.73,0.00043835,120]
[381454774,1756218336725,-1635.75,0.00043835,120]
[381454775,1756218336775,-480.0,0.00043835,120]
[381454776,1756218336826,-712.26,0.00043835,120]
[381454777,1756218336874,-604.22,0.00043835,120]
[381454778,1756218336924,-918.52,0.00043835,120]
[381454779,1756218336973,-837.38,0.00043835,120]
[381454780,1756218337020,-480.0,0.00043835,120]
[381454781,1756218337069,-2479.21,0.00043835,120]
[381454782,1756218337117,-510.0,0.00043835,120]
[381454783,1756218337166,-596.09,0.00043835,120]
[381454784,1756218337212,-1556.27,0.00043835,120]
[381454785,1756218337260,-3019.63,0.00043835,120]
[381454786,1756218337309,-513.94,0.00043835,120]
[381454787,1756218337355,-680.12,0.00043835,120]
[381454788,1756218337403,-480.0,0.00043835,120]
[381454789,1756218337451,-691.04,0.00043835,120]
[381454790,1756218337500,-1191.93,0.00043835,120]
[381454791,1756218337546,-717.33,0.00043835,120]
[381454792,1756218337596,-694.04,0.00043835,120]
[381454793,1756218337645,-791.39,0.00043835,120]
[381454794,1756218337696,-532.27,0.00043835,120]
[381454795,1756218337744,-647.94,0.00043835,120]
[381454796,1756218337794,-614.76,0.00043835,120]
[381454797,1756218337841,-799.0,0.00043835,120]
[381454798,1756218337891,-575.14,0.00043835,120]
[381454799,1756218337938,-1422.5,0.00043835,120]
[381454800,1756218337987,-519.52,0.00043835,120]
[381454801,1756218338036,-1573.81,0.00043835,120]
[381454802,1756218338085,-480.89,0.00043835,120]
[381454803,1756218338133,-661.4,0.00043835,120]
[381454804,1756218338182,-621.25,0.00043835,120]
[381454805,1756218338230,-917.84,0.00043835,120]
[381454806,1756218338279,-480.0,0.00043835,120]
[381454807,1756218338327,-954.84,0.00043835,120]
[381454808,1756218338377,-493.01,0.00043835,120]
[381454809,1756218338431,-3281.42,0.00043835,120]
[381454810,1756218338478,-800.85,0.00043835,120]
[381454811,1756218338528,-812.3,0.00043835,120]
[381454812,1756218338577,-692.73,0.00043835,120]
[381454813,1756218338623,-1311.47,0.00043835,120]
[381454814,1756218338672,-507.35,0.00043835,120]
[381454815,1756218338719,-1300.11,0.00043835,120]
[381454816,1756218338766,-605.1,0.00043835,120]
[381454817,1756218338813,-814.6,0.00043835,120]
[381454818,1756218338864,-452.9469127,0.00043835,120]
[381454819,1756218338912,-932.49,0.00043835,120]
[381454820,1756218338959,-1647.75,0.00043835,120]
[381454821,1756218339006,-591.47,0.00043835,120]
[381454822,1756218339056,-1224.31,0.00043835,120]
[381454823,1756218339106,-480.0,0.00043835,120]
[381454824,1756218339159,-954.67,0.00043835,120]
[381454825,1756218339211,-933.93,0.00043835,120]
[381454826,1756218339264,-491.77,0.00043835,120]
[381454827,1756218339312,-686.35,0.00043835,120]
[381454828,1756218339363,-578.78,0.00043835,120]
[381454829,1756218339413,-690.29,0.00043835,120]
[381454830,1756218339462,-1206.53,0.00043835,120]
[381454831,1756218339514,-530.4,0.00043835,120]
[381454832,1756218339562,-667.05,0.00043835,120]
[381454833,1756218339613,-480.0,0.00043835,120]
[381454834,1756218339660,-622.61,0.00043835,120]
[381454835,1756218339709,-1033.3,0.00043835,120]
[381454836,1756218339757,-621.49,0.00043835,120]
[381454837,1756218339807,-1223.46,0.00043835,120]
[381454838,1756218339854,-534.2,0.00043835,120]
[381454839,1756218339904,-480.0,0.00043835,120]
[381454840,1756218339952,-2620.36,0.00043835,120]
[381454841,1756218340000,-714.28,0.00043835,120]
[381454842,1756218340227,-567.72,0.00043835,120]
[381454843,1756218340275,-686.73,0.00043835,120]
[381454844,1756218340323,-1025.74,0.00043835,120]
[381454845,1756218340372,-6191.39,0.00043835,120]
[381454846,1756218340419,-1966.34,0.00043835,120]
[381454847,1756218340466,-848.71,0.00043835,120]
[381454848,1756218340514,-792.61,0.00043835,60]
[381454849,1756218340563,-737.63,0.00043835,120]
[381454850,1756218340611,-480.0,0.00043835,120]
[381454851,1756218340660,-606.55,0.00043835,120]
[381454852,1756218340707,-731.61,0.00043835,120]
[381454853,1756218340755,-2222.74,0.00043835,120]
[381454854,1756218340803,-968.82,0.00043835,120]
[381454855,1756218340850,-961.44,0.00043835,120]
[381454856,1756218340898,-360.856863,0.00043835,120]
[381454857,1756218340945,-847.59,0.00043835,120]
[381454858,1756218340991,-480.0,0.00043835,120]
[381454859,1756218341038,-2777.64,0.00043835,120]
[381454860,1756218341086,-651.99,0.00043835,120]
[381454861,1756218341132,-2596.81,0.00043835,120]
[381454862,1756218341180,-767.78,0.00043835,120]
[381454863,1756218341227,-628.57,0.00043835,120]
[381454864,1756218341276,-531.45,0.00043835,120]
[381454865,1756218341325,-481.57,0.00043835,120]
[381454866,1756218341375,-831.43,0.00043835,120]
[381454867,1756218341427,-480.0,0.00043835,120]
[381454868,1756218341475,-592.62,0.00043835,120]
[381454869,1756218341524,-507.61,0.00043835,120]
[381454870,1756218341571,-4658.7,0.00043835,120]
[381454871,1756218341620,-519.82,0.00043835,120]
[381454872,1756218341667,-576.05,0.00043835,120]
[381454873,1756218341717,-553.6376509,0.00043835,120]
[381454874,1756218341763,-3723.97,0.00043835,120]
[381454875,1756218341812,-616.61,0.00043835,120]
[381454876,1756218341860,-810.88,0.00043835,120]
[381454877,1756218341913,-1020.75,0.00043835,120]
[381454878,1756218341957,-758.93,0.00043835,120]
[381454879,1756218342004,-1979.83,0.00043835,120]
[381454880,1756218342051,-950.93,0.00043835,120]
[381454881,1756218342096,-521.43,0.00043835,120]
[381454882,1756218342142,-1672.51,0.00043835,120]
[381454883,1756218342189,-1258.08,0.00043835,120]
[381454884,1756218342235,-588.59,0.00043835,120]
[381454885,1756218342280,-2560.52,0.00043835,120]
[381454886,1756218342328,-1626.66,0.00043835,120]
[381454887,1756218342376,-695.92,0.00043835,120]
[381454888,1756218342428,-842.92,0.00043835,120]
[381454889,1756218342477,-10030.08,0.00043835,120]
[381454890,1756218342526,-735.6,0.00043835,120]
[381454891,1756218342574,-648.38,0.00043835,120]
[381454892,1756218342625,-494.44,0.00043835,120]
[381454893,1756218342673,-640.16,0.00043835,120]
[381454894,1756218342724,-924.17,0.00043835,120]
[381454895,1756218342771,-5579.83,0.00043835,120]
[381454896,1756218342818,-1357.13,0.00043835,120]
[381454897,1756218342869,-1063.38,0.00043835,120]
[381454898,1756218342916,-508.38,0.00043835,120]
[381454899,1756218342964,-1342.93,0.00043835,120]
[381454900,1756218343012,-774.48,0.00043835,120]
[381454901,1756218343061,-535.87,0.00043835,120]
[381454902,1756218343108,-480.0,0.00043835,120]
[381454903,1756218343159,-874.46,0.00043835,120]
[381454904,1756218343208,-2526.12,0.00043835,120]
[381454905,1756218343259,-1080.14,0.00043835,120]
[381454906,1756218343308,-504.0,0.00043835,120]
[381454907,1756218343361,-814.53,0.00043835,120]
[381454908,1756218343411,-670.72,0.00043835,120]
[381454909,1756218343459,-944.78,0.00043835,120]
[381454910,1756218343510,-793.45,0.00043835,120]
[381454911,1756218343558,-1893.02,0.00043835,120]
[381454912,1756218343608,-480.0,0.00043835,120]
[381454913,1756218343657,-9435.86,0.00043835,120]
[381454914,1756218343707,-3851.02,0.00043835,120]
[381454915,1756218343756,-712.3,0.00043835,120]
[381454916,1756218343809,-308.90172846,0.00043835,120]
[381454917,1756218343857,-1040.4,0.00043835,120]
[381454918,1756218343907,-3048.03,0.00043835,120]
[381454919,1756218343963,-779.47,0.00043835,120]
[381454920,1756218344011,-1006.92,0.00043835,120]
[381454921,1756218344062,-1057.29,0.00043835,120]
[381454922,1756218344111,-6619.07,0.00043835,120]
[381454923,1756218344161,-952.77,0.00043835,120]
[381454924,1756218344213,-837.47,0.00043835,120]
[381454925,1756218344266,-4640.08,0.00043835,120]
[381454926,1756218344318,-1141.08,0.00043835,120]
[381454927,1756218344373,-562.32,0.00043835,120]
[381454928,1756218344421,-2014.78,0.00043835,120]
[381454929,1756218344474,-593.39563485,0.00043835,120]
[381454930,1756218344522,-7832.26,0.00043835,120]
[381454931,1756218344571,-966.4,0.00043835,120]
[381454932,1756218344619,-763.43,0.00043835,120]
[381454933,1756218344667,-2701.92,0.00043835,120]
[381454934,1756218344712,-1038.47,0.00043835,120]
[381454935,1756218344759,-1152.9,0.00043835,120]
[381454936,1756218344807,-587.28,0.00043835,120]
[381454937,1756218344851,-1060.9,0.00043835,120]
[381454938,1756218344898,-738.78,0.00043835,120]
[381454939,1756218344942,-887.12,0.00043835,120]
[381454940,1756218344989,-2292.15,0.00043835,120]
[381454941,1756218345035,-1551.39,0.00043835,120]
[381454942,1756218345082,-1409.29,0.00043835,120]
[381454943,1756218345128,-1420.65,0.00043835,120]
[381454944,1756218345172,-1240.43,0.00043835,120]
[381454945,1756218345391,-800.14,0.00043835,120]
[381454946,1756218345443,-16305.92,0.00043835,120]
[381454947,1756218345494,-559.96,0.00043835,120]
[381454948,1756218345545,-654.34,0.00043835,120]
[381454949,1756218345594,-1161.85,0.00043835,120]
[381454950,1756218345645,-489.45,0.00043835,120]
[381454951,1756218345694,-2256.93,0.00043835,120]
[381454952,1756218345743,-553.67,0.00043835,120]
[381454953,1756218345790,-605.28,0.00043835,120]
[381454954,1756218345837,-579.52,0.00043835,120]
[381454955,1756218345885,-1740.99,0.00043835,120]
[381454956,1756218345932,-559.56,0.00043835,120]
[381454957,1756218345981,-3090.82,0.00043835,120]
[381454958,1756218346030,-606.45,0.00043835,120]
[381454959,1756218346079,-538.89,0.00043835,120]
[381454960,1756218346128,-480.0,0.00043835,120]
[381454961,1756218346177,-1543.3,0.00043835,120]
[381454962,1756218346225,-751.54,0.00043835,120]
[381454963,1756218346272,-5033.01,0.00043835,120]
[381454964,1756218346320,-12265.72,0.00043835,120]
[381454965,1756218346370,-544.37,0.00043835,120]
[381454966,1756218346419,-480.0,0.00043835,120]
[381454967,1756218346472,-1614.8,0.00043835,120]
[381454968,1756218346519,-1820.68,0.00043835,120]
[381454969,1756218346569,-2228.03,0.00043835,120]
[381454970,1756218346616,-1931.55,0.00043835,120]
[381454971,1756218346667,-480.0,0.00043835,120]
[381454972,1756218346714,-1230.09,0.00043835,120]
[381454973,1756218346761,-1889.67,0.00043835,120]
[381454974,1756218346809,-552.99,0.00043835,120]
[381454975,1756218346857,-3306.38,0.00043835,120]
[381454976,1756218346907,-1560.21,0.00043835,120]
[381454977,1756218346958,-300.0,0.00044,120]
[381454978,1756218347009,-1000.0,0.00044,120]
[381454979,1756218347059,-650.39,0.00044109,120]
[381454980,1756218347108,-663.79,0.00044109,120]
[381454981,1756218347160,-1164.7,0.00044109,120]
[381454982,1756218347207,-607.39,0.00044109,120]
[381454983,1756218347254,-500.23,0.00044109,120]
[381454984,1756218347302,-514.13,0.00044109,120]
[381454985,1756218347352,-531.31,0.00044109,120]
[381454986,1756218347404,-734.84,0.00044109,120]
[381454987,1756218347450,-832.5,0.00044109,120]
[381454988,1756218347498,-538.04,0.00044109,120]
[381454989,1756218347548,-1077.24,0.00044109,120]
[381454990,1756218347597,-715.86,0.00044109,120]
[381454991,1756218347648,-319.20372285,0.00044109,120]
[381454992,1756218347698,-669.24,0.00044109,120]
[381454993,1756218347744,-853.3,0.00044109,120]
[381454994,1756218347791,-1991.1,0.00044109,120]
[381454995,1756218347837,-498.90792294,0.00044109,120]
[381454996,1756218347883,-596.6,0.00044109,120]
[381454997,1756218347929,-1218.62,0.00044109,120]
[381454998,1756218347973,-673.23,0.00044109,120]
[381454999,1756218348019,-745.6,0.00044109,120]
[381455000,1756218348066,-626.35,0.00044109,120]
[381455001,1756218348113,-482.61,0.00044109,120]
[381455002,1756218348163,-587.43,0.00044109,120]
[381455003,1756218348211,-1894.39,0.00044109,120]
[381455004,1756218348260,-480.0,0.00044109,120]
[381455005,1756218348310,-512.9,0.00044109,120]
[381455006,1756218348360,-623.36,0.00044109,120]
[381455007,1756218348411,-733.12,0.00044109,120]
[381455008,1756218348462,-1706.1,0.00044109,120]
[381455009,1756218348514,-546.36,0.00044109,120]
[381455010,1756218348564,-1490.61,0.00044109,120]
[381455011,1756218348613,-637.47,0.00044109,120]
[381455012,1756218348665,-926.78,0.00044109,120]
[381455013,1756218348716,-658.73,0.00044109,120]
[381455014,1756218348767,-671.86,0.00044109,120]
[381455015,1756218348815,-1326.02,0.00044109,120]
[381455016,1756218348865,-814.73,0.00044109,120]
[381455017,1756218348917,-1635.75,0.00044109,120]
[381455018,1756218348970,-480.0,0.00044109,120]
[381455019,1756218349022,-712.26,0.00044109,120]
[381455020,1756218349071,-604.22,0.00044109,120]
[381455021,1756218349120,-918.52,0.00044109,120]
[381455022,1756218349171,-837.38,0.00044109,120]
[381455023,1756218349221,-480.0,0.00044109,120]
[381455024,1756218349271,-2479.21,0.00044109,120]
[381455025,1756218349324,-510.0,0.00044109,120]
[381455026,1756218349378,-596.09,0.00044109,120]
[381455027,1756218349436,-1556.27,0.00044109,120]
[381455028,1756218349487,-3019.63,0.00044109,120]
[381455029,1756218349536,-513.94,0.00044109,120]
[381455030,1756218349586,-680.12,0.00044109,120]
[381455031,1756218349637,-418.23967751,0.00044109,120]
[381455032,1756218349683,-691.04,0.00044109,120]
[381455033,1756218349732,-1191.93,0.00044109,120]
[381455034,1756218349778,-717.33,0.00044109,120]
[381455035,1756218349825,-694.04,0.00044109,120]
[381455036,1756218349873,-791.39,0.00044109,120]
[381455037,1756218349922,-532.27,0.00044109,120]
[381455038,1756218349971,-647.94,0.00044109,120]
[381455039,1756218350017,-614.76,0.00044109,120]
[381455040,1756218350063,-799.0,0.00044109,120]
[381455041,1756218350111,-575.14,0.00044109,120]
[381455042,1756218350163,-1422.5,0.00044109,120]
[381455043,1756218350209,-519.52,0.00044109,120]
[381455044,1756218350255,-1573.81,0.00044109,120]
[381455045,1756218350299,-480.89,0.00044109,120]
[381455046,1756218350348,-661.4,0.00044109,120]
[381455047,1756218350536,-621.25,0.00044109,120]
[381455048,1756218350614,-917.84,0.00044109,120]
[381455049,1756218350662,-480.0,0.00044109,120]
[381455050,1756218350709,-954.84,0.00044109,120]
[381455051,1756218350753,-493.01,0.00044109,120]
[381455052,1756218350800,-3281.42,0.00044109,120]
[381455053,1756218350844,-800.85,0.00044109,120]
[381455054,1756218350891,-812.3,0.00044109,120]
[381455055,1756218350936,-692.73,0.00044109,120]
[381455056,1756218350983,-507.35,0.00044109,120]
[381455057,1756218351027,-1311.47,0.00044109,120]
[381455058,1756218351072,-1300.11,0.00044109,120]
[381455059,1756218351117,-605.1,0.00044109,120]
[381455060,1756218351167,-814.6,0.00044109,120]
[381455061,1756218351215,-932.49,0.00044109,120]
[381455062,1756218351262,-1647.75,0.00044109,120]
[381455063,1756218351311,-591.47,0.00044109,120]
[381455064,1756218351359,-1224.31,0.00044109,120]
[381455065,1756218351414,-480.0,0.00044109,120]
[381455066,1756218351465,-954.67,0.00044109,120]
[381455067,1756218351513,-933.93,0.00044109,120]
[381455068,1756218351561,-491.77,0.00044109,120]
[381455069,1756218351606,-686.35,0.00044109,120]
[381455070,1756218351653,-578.78,0.00044109,120]
[381455071,1756218351699,-690.29,0.00044109,120]
[381455072,1756218351745,-1206.53,0.00044109,120]
[381455073,1756218351791,-530.4,0.00044109,120]
[381455074,1756218351837,-667.05,0.00044109,120]
[381455075,1756218351883,-318.54283749,0.00044109,120]
[381455076,1756218351928,-622.61,0.00044109,120]
[381455077,1756218351972,-1033.3,0.00044109,120]
[381455078,1756218352015,-621.49,0.00044109,120]
[381455079,1756218352058,-1223.46,0.00044109,120]
[381455080,1756218352100,-480.0,0.00044109,120]
[381455081,1756218352143,-534.2,0.00044109,120]
[381455082,1756218352186,-2620.36,0.00044109,120]
[381455083,1756218352231,-714.28,0.00044109,120]
[381455084,1756218352275,-567.72,0.00044109,120]
[381455085,1756218352321,-686.73,0.00044109,120]
[381455086,1756218352368,-1025.74,0.00044109,120]
[381455087,1756218352420,-6191.39,0.00044109,120]
[381455088,1756218352470,-1966.34,0.00044109,120]
[381455089,1756218352518,-848.71,0.00044109,120]
[381455090,1756218352566,-792.61,0.00044109,60]
[381455091,1756218352612,-737.63,0.00044109,120]
[381455092,1756218352659,-480.0,0.00044109,120]
[381455093,1756218352706,-606.55,0.00044109,120]
[381455094,1756218352755,-731.61,0.00044109,120]
[381455095,1756218352803,-2222.74,0.00044109,120]
[381455096,1756218352848,-968.82,0.00044109,120]